[Event "11th LCC FIDE Open 2019"]
[Site "London"]
[Date "2019.11.30"]
[Round "2.54"]
[White "Walker, Samuel A"]
[Black "Kuzhelev, Timur"]
[Result "1-0"]
[ECO "C40"]
[WhiteElo "2039"]
[BlackElo "1716"]
[Annotator "NA"]
[PlyCount "85"]
[EventDate "2019.11.29"]
[EventType "swiss"]
[EventCountry "ENG"]
[SourceTitle "playchess.com"]
[Source "ChessBase"]
[SourceQuality "1"]
[TimeControl "40/5400+30:1800+30"]

1. e4 {[%emt 0:59:55]} e5 {[%emt 0:00:04]} 2. Nf3 {[%emt 0:00:14]} d5 {[%emt 0:00:04]} 3. exd5 {[%emt 0:02:53]} e4 {[%emt 0:00:03]} 4. Qe2 {[%emt 0:06:31]} Nf6 {[%emt 0:00:07]} 5. Nc3 {[%emt 0:00:48]} Be7 {[%emt 0:00:03]} 6. Nd4 {[%emt 0:09:14]} (6. Nxe4 $14 O-O 7. Nxf6+ Bxf6 8. d4) 6... O-O {[%emt 0:01:07]} 7. Qc4 {[%emt 0:00:57]} (7. d3 $11 {remains equal.}) 7... Nbd7 {[%emt 0:01:55]} 8. Be2 {[%emt 0:02:45]} Nb6 {[%emt 0:02:00]} 9. Qb3 {[%emt 0:00:20]} Nbxd5 {[%emt 0:00:09]} 10. d3 $19 {[%emt 0:02:55] [#]} (10. Nxd5 $17 Qxd5 11. Qxd5 Nxd5 12. f3) 10... exd3 $2 {[%emt 0:01:17]} (10... Nb6 $1 $19 {has better winning chances.} 11. Nxe4 Qxd4) 11. Nxd5 {[%emt 0:06:08]} Nxd5 {[%emt 0:04:19]} 12. Bxd3 {[%emt 0:01:39]} Bb4+ {[%emt 0:00:06]} 13. c3 {[%emt 0:01:58]} Re8+ {[%emt 0:00:04]} 14. Kf1 {[%emt 0:02:57]} Bc5 {[%emt 0:05:18]} 15. Bc4 {[%emt 0:03:23]} c6 {[%emt 0:03:11]} 16. Bxd5 {[%emt 0:04:54]} cxd5 {[%emt 0:00:06]} 17. Be3 {[%emt 0:00:22]} b6 {[%emt 0:03:18]} 18. Rd1 {[%emt 0:01:37]} Ba6+ {[%emt 0:00:55]} 19. Kg1 {[%emt 0:00:13]} Bc4 {[%emt 0:03:24]} 20. Qc2 {[%emt 0:00:48]} Rc8 {[%emt 0:01:49]} 21. h4 {[%emt 0:01:24]} h6 {[%emt 0:02:39]} 22. Rh3 Re4 {[%emt 0:06:07]} 23. Nf5 {[%emt 0:07:38]} Qf6 {[%emt 0:06:16]} 24. Rf3 {[%emt 0:00:36]} Bxe3 {[%emt 0:03:02]} 25. Nxe3 {[%emt 0:03:17]} Qxh4 {[%emt 0:08:16]} 26. Qd2 {[%emt 0:11:25]} Rce8 {[%emt 0:06:46]} 27. b3 {[%emt 0:01:25]} Bd3 {[%emt 0:00:52]} 28. Qxd3 {[%emt 0:00:26]} R8e5 {[%emt 0:02:13]} 29. Rf5 {[%emt 0:04:44]} Re6 {[%emt 0:05:56]} 30. Rxd5 {[%emt 0:00:58]} g6 {[%emt 0:00:17]} 31. Rd4 {[%emt 0:00:39]} Rxd4 {[%emt 0:00:58]} 32. cxd4 {[%emt 0:00:40]} Rf6 {[%emt 0:00:18]} 33. Qd2 {[%emt 0:00:38]} b5 {[%emt 0:00:14]} 34. d5 {[%emt 0:00:08]} Rd6 {[%emt 0:00:03]} 35. Qd4 {[%emt 0:00:16]} Qe7 {[%emt 0:00:07]} 36. Rc1 {[%emt 0:00:33]} Rd8 {[%emt 0:00:53]} 37. b4 {[%emt 0:01:44]} f5 {[%emt 0:00:08]} 38. Qf4 {[%emt 0:01:27]} Kh7 {[%emt 0:02:21]} 39. Rc7 {[%emt 0:00:40]} Rd7 {[%emt 0:00:04]} 40. Nxf5 {[%emt 0:02:02]} Qe1+ {[%emt 0:01:07]} 41. Kh2 {[%emt 0:00:12]} g5 {[%emt 0:00:03]} 42. Rxd7+ {[%emt 0:00:12]} Kg6 {[%emt 0:00:04]} 43. Rd6+ {[%emt 0:01:38]} 1-0

[Event "11th LCC FIDE Open 2019"]
[Site "London"]
[Date "2019.12.01"]
[Round "4.1"]
[White "Petrov, Martin"]
[Black "Aravindh, Chithambaram VR."]
[Result "1/2-1/2"]
[ECO "B35"]
[WhiteElo "2497"]
[BlackElo "2605"]
[Annotator "ChessBase"]
[PlyCount "49"]
[EventDate "2019.11.29"]
[EventType "swiss"]
[EventCountry "ENG"]
[SourceTitle "playchess.com"]
[Source "ChessBase"]
[SourceQuality "1"]
[TimeControl "40/5400+30:1800+30"]

1. e4 {[%emt 0:00:00]} c5 {[%emt 0:01:24]} 2. Nf3 {[%emt 0:00:00]} Nc6 {[%emt 0:00:09]} 3. d4 {[%emt 0:00:00]} cxd4 {[%emt 0:00:06]} 4. Nxd4 {[%emt 0:00:00]} g6 {[%emt 0:00:09]} 5. Nc3 {[%emt 0:00:01]} Bg7 {[%emt 0:00:07]} 6. Be3 {[%emt 0:00:04]} Nf6 {[%emt 0:00:08]} 7. Bc4 {[%emt 0:00:07]} O-O {[%emt 0:00:22]} 8. Bb3 {[%emt 0:00:06]} Re8 {[%emt 0:00:32]} 9. Nxc6 {[%emt 0:06:15]} dxc6 {[%emt 0:00:32]} 10. Qf3 {[%emt 0:01:29]} Qc7 {[%emt 0:04:54]} 11. h3 {[%emt 0:06:29]} b6 {[%emt 0:19:05]} 12. O-O {[%emt 0:11:19]} e5 {[%emt 0:01:18]} 13. a4 {[%emt 0:05:34]} Be6 {[%emt 0:04:00]} 14. Bxe6 {[%emt 0:02:07]} Rxe6 {[%emt 0:00:07]} 15. Qe2 {[%emt 0:04:30]} Bf8 {[%emt 0:02:08]} 16. Qc4 {[%emt 0:03:33]} Ne8 {[%emt 0:00:40]} 17. Rfd1 {[%emt 0:01:22]} Nd6 {[%emt 0:02:00]} 18. Nb5 {[%emt 0:01:59]} Qb7 {[%emt 0:04:11]} 19. Nxd6 {[%emt 0:00:49]} Rxd6 {[%emt 0:00:04]} 20. Rxd6 {[%emt 0:00:27]} Bxd6 {[%emt 0:00:05]} 21. Rd1 {[%emt 0:00:34]} Be7 {[%emt 0:00:36]} 22. Rd3 {[%emt 0:07:23]} Rd8 {[%emt 0:01:37]} 23. Rxd8+ {[%emt 0:02:26]} Bxd8 {[%emt 0:00:07]} 24. Kf1 {[%emt 0:02:32]} Be7 {[%emt 0:03:55]} 25. Ke2 {[%emt 0:01:26]} 1/2-1/2

[Event "11th LCC FIDE Open 2019"]
[Site "London"]
[Date "2019.12.01"]
[Round "4.2"]
[White "Moussard, Jules"]
[Black "Gormally, Daniel W"]
[Result "0-1"]
[ECO "B81"]
[WhiteElo "2600"]
[BlackElo "2491"]
[Annotator "ChessBase"]
[PlyCount "86"]
[EventDate "2019.11.29"]
[EventType "swiss"]
[EventCountry "ENG"]
[SourceTitle "playchess.com"]
[Source "ChessBase"]
[SourceQuality "1"]
[TimeControl "40/5400+30:1800+30"]

1. e4 {[%emt 0:04:06]} c5 {[%emt 0:00:00]} 2. Nf3 {[%emt 0:00:06]} d6 {[%emt 0:00:03]} 3. d4 {[%emt 0:00:04]} cxd4 {[%emt 0:00:06]} 4. Nxd4 {[%emt 0:00:10]} Nf6 {[%emt 0:00:20]} 5. Nc3 {[%emt 0:00:17]} a6 {[%emt 0:00:05]} 6. h3 {[%emt 0:00:09]} e6 {[%emt 0:02:59]} 7. g4 {[%emt 0:00:21]} Be7 {[%emt 0:00:35]} 8. g5 {[%emt 0:00:46]} Nfd7 {[%emt 0:00:11]} 9. Be3 {[%emt 0:00:32]} Nc6 {[%emt 0:01:14]} 10. h4 {[%emt 0:05:31]} O-O {[%emt 0:03:00]} 11. Qd2 {[%emt 0:04:28]} Nxd4 {[%emt 0:02:04]} 12. Qxd4 {[%emt 0:05:27]} b5 {[%emt 0:01:06]} 13. O-O-O {[%emt 0:18:08]} Bb7 {[%emt 0:01:07]} 14. f4 {[%emt 0:15:39]} Qa5 {[%emt 0:10:39]} 15. a3 {[%emt 0:03:48]} Rfc8 {[%emt 0:03:30]} 16. Kb1 {[%emt 0:03:12]} d5 {[%emt 0:14:28]} 17. Rh3 {[%emt 0:02:46]} b4 {[%emt 0:09:39]} 18. axb4 {[%emt 0:01:00]} Bxb4 {[%emt 0:00:08]} 19. Na2 {[%emt 0:04:05]} Bc5 {[%emt 0:06:04]} 20. Qd2 {[%emt 0:00:33]} Qc7 {[%emt 0:02:34]} 21. e5 {[%emt 0:06:28]} d4 {[%emt 0:04:58]} 22. Bf2 {[%emt 0:00:37]} Bd5 {[%emt 0:02:24]} 23. Nc1 {[%emt 0:01:38]} a5 {[%emt 0:04:32]} 24. Nb3 {[%emt 0:04:21]} Bb4 {[%emt 0:03:12]} 25. Qe2 {[%emt 0:01:36]} a4 {[%emt 0:03:11]} 26. Nxd4 {[%emt 0:00:07]} a3 {[%emt 0:00:12]} 27. c4 {[%emt 0:03:09]} axb2 {[%emt 0:03:42]} 28. Qxb2 {[%emt 0:02:21]} Be4+ {[%emt 0:04:32]} 29. Bd3 {[%emt 0:00:18]} Nc5 {[%emt 0:04:34]} 30. Bc2 {[%emt 0:04:31]} Qa5 {[%emt 0:02:25]} 31. Nb3 {[%emt 0:00:28]} Bxc2+ {[%emt 0:03:56]} 32. Kxc2 {[%emt 0:00:14]} Nxb3 {[%emt 0:02:18]} 33. Qxb3 {[%emt 0:00:03]} Qa6 {[%emt 0:01:19]} 34. Kd3 {[%emt 0:00:45]} Qb7 {[%emt 0:03:32]} 35. Rb1 {[%emt 0:03:36]} Qg2 {[%emt 0:01:19]} 36. Ke2 {[%emt 0:02:42]} Ra3 {[%emt 0:00:35]} 37. Qxb4 {[%emt 0:00:15]} Qxh3 {[%emt 0:00:34]} 38. Qb7 {[%emt 0:00:32]} Qd3+ {[%emt 0:00:34]} 39. Ke1 {[%emt 0:00:01]} Qxc4 {[%emt 0:00:16]} 40. h5 {[%emt 0:01:53]} Ra2 {[%emt 0:00:43]} 41. Qf3 {[%emt 0:30:11]} Qc1+ {[%emt 0:30:22]} 42. Qd1 {[%emt 0:00:17]} Qxf4 {[%emt 0:00:31]} 43. Qc2 {[%emt 0:00:19]} Raxc2 {[%emt 0:00:11]} 0-1

[Event "11th LCC FIDE Open 2019"]
[Site "London"]
[Date "2019.12.01"]
[Round "4.5"]
[White "Grover, Sahaj"]
[Black "Cherniaev, Alexander"]
[Result "1/2-1/2"]
[ECO "C48"]
[WhiteElo "2508"]
[BlackElo "2428"]
[Annotator "ChessBase"]
[PlyCount "105"]
[EventDate "2019.11.29"]
[EventType "swiss"]
[EventCountry "ENG"]
[SourceTitle "playchess.com"]
[Source "ChessBase"]
[SourceQuality "1"]
[TimeControl "40/5400+30:1800+30"]

1. e4 {[%emt 0:00:06]} e5 {[%emt 0:00:57]} 2. Nf3 {[%emt 0:00:23]} Nc6 {[%emt 0:00:23]} 3. Nc3 {[%emt 0:03:46]} Nf6 {[%emt 0:01:17]} 4. Bb5 {[%emt 0:00:19]} Bd6 {[%emt 0:03:16]} 5. d3 {[%emt 0:00:23]} h6 {[%emt 0:08:59]} 6. a3 {[%emt 0:04:05]} a6 {[%emt 0:02:33]} 7. Bc4 {[%emt 0:00:00]} b5 {[%emt 0:00:04]} 8. Ba2 {[%emt 0:00:00]} Bb7 {[%emt 0:00:18]} 9. O-O {[%emt 0:00:38]} Bc5 {[%emt 0:09:02]} 10. Be3 {[%emt 0:03:31]} d6 {[%emt 0:00:18]} 11. d4 {[%emt 0:02:09]} exd4 {[%emt 0:02:31]} 12. Nxd4 {[%emt 0:00:08]} Nxd4 {[%emt 0:03:08]} 13. Bxd4 {[%emt 0:00:06]} Bxd4 {[%emt 0:00:04]} 14. Qxd4 {[%emt 0:00:05]} c5 {[%emt 0:01:52]} 15. Qd3 {[%emt 0:00:56]} O-O {[%emt 0:05:20]} 16. Rad1 {[%emt 0:01:38]} Qb6 {[%emt 0:16:57]} 17. Bd5 {[%emt 0:11:56]} Bxd5 {[%emt 0:00:33]} 18. Nxd5 {[%emt 0:00:07]} Nxd5 {[%emt 0:00:05]} 19. Qxd5 {[%emt 0:00:05]} Rfe8 {[%emt 0:06:31]} 20. Rd3 {[%emt 0:01:44]} Ra7 {[%emt 0:03:50]} 21. f3 {[%emt 0:02:50]} Re6 {[%emt 0:04:26]} 22. Rfd1 {[%emt 0:01:07]} Rae7 {[%emt 0:00:48]} 23. Qf5 {[%emt 0:02:23]} c4+ {[%emt 0:01:20]} 24. Rd4 {[%emt 0:00:45]} Re5 {[%emt 0:00:14]} 25. Qc8+ {[%emt 0:02:38]} Re8 {[%emt 0:00:16]} 26. Qd7 {[%emt 0:00:42]} d5 {[%emt 0:00:17]} 27. exd5 {[%emt 0:02:20]} Re1+ {[%emt 0:06:51]} 28. Rxe1 {[%emt 0:00:06]} Rxe1+ {[%emt 0:00:26]} 29. Kf2 {[%emt 0:00:04]} Rd1 {[%emt 0:00:19]} 30. Qe8+ {[%emt 0:01:47]} Kh7 {[%emt 0:00:26]} 31. Qe4+ {[%emt 0:00:03]} f5 {[%emt 0:00:29]} 32. Qxf5+ {[%emt 0:00:46]} g6 {[%emt 0:05:14]} 33. Qf7+ {[%emt 0:02:05]} Kh8 {[%emt 0:00:01]} 34. c3 {[%emt 0:00:30]} Rxd4 {[%emt 0:00:07]} 35. cxd4 {[%emt 0:00:06]} Qxd4+ {[%emt 0:00:03]} 36. Kg3 {[%emt 0:00:06]} g5 {[%emt 0:00:13]} 37. h3 {[%emt 0:17:46]} Qxb2 {[%emt 0:04:57]} 38. Kg4 {[%emt 0:02:33]} Qe5 {[%emt 0:06:12]} 39. Qf8+ {[%emt 0:00:39]} Kh7 {[%emt 0:00:07]} 40. d6 {[%emt 0:00:39]} Qd4+ {[%emt 0:00:16]} 41. f4 {[%emt 0:30:40]} Qd1+ {[%emt 0:32:58]} 42. Kg3 {[%emt 0:00:54]} gxf4+ {[%emt 0:03:28]} 43. Qxf4 {[%emt 0:00:17]} Qd5 {[%emt 0:02:15]} 44. Qf6 {[%emt 0:00:48]} c3 {[%emt 0:01:28]} 45. Qe7+ {[%emt 0:00:30]} Kg6 {[%emt 0:00:40]} 46. d7 {[%emt 0:02:30]} c2 {[%emt 0:00:00]} 47. Qe8+ {[%emt 0:00:00]} Kg7 {[%emt 0:00:00]} 48. d8=Q {[%emt 0:00:00]} Qxd8 {[%emt 0:00:00]} 49. Qxd8 {[%emt 0:00:00]} c1=Q {[%emt 0:00:00]} 50. Qe7+ {[%emt 0:00:00]} Kg6 {[%emt 0:00:00]} 51. Qe6+ {[%emt 0:00:00]} Kg7 {[%emt 0:00:00]} 52. Qxa6 {[%emt 0:00:00]} Qe3+ {[%emt 0:00:00]} 53. Kh2 {[%emt 0:00:00]} 1/2-1/2

[Event "11th LCC FIDE Open 2019"]
[Site "London"]
[Date "2019.12.01"]
[Round "4.6"]
[White "Arkell, Keith C"]
[Black "Gordon, Stephen J"]
[Result "1/2-1/2"]
[ECO "D35"]
[WhiteElo "2445"]
[BlackElo "2505"]
[Annotator "ChessBase"]
[PlyCount "73"]
[EventDate "2019.11.29"]
[EventType "swiss"]
[EventCountry "ENG"]
[SourceTitle "playchess.com"]
[Source "ChessBase"]
[SourceQuality "1"]
[TimeControl "40/5400+30:1800+30"]

1. Nf3 {[%emt 0:00:00]} d5 {[%emt 0:02:19]} 2. d4 {[%emt 0:00:07]} Nf6 {[%emt 0:00:11]} 3. c4 {[%emt 0:00:06]} e6 {[%emt 0:00:17]} 4. Nc3 {[%emt 0:00:07]} c6 {[%emt 0:00:07]} 5. cxd5 {[%emt 0:00:07]} exd5 {[%emt 0:00:07]} 6. Bg5 {[%emt 0:00:05]} h6 {[%emt 0:00:29]} 7. Bh4 {[%emt 0:00:06]} Bf5 {[%emt 0:00:13]} 8. e3 {[%emt 0:00:18]} Nbd7 {[%emt 0:00:14]} 9. Bd3 {[%emt 0:00:20]} Bxd3 {[%emt 0:00:14]} 10. Qxd3 {[%emt 0:00:04]} Bd6 {[%emt 0:00:17]} 11. O-O {[%emt 0:00:10]} O-O {[%emt 0:00:13]} 12. Rfe1 {[%emt 0:02:01]} Re8 {[%emt 0:00:58]} 13. Qc2 {[%emt 0:00:24]} a5 {[%emt 0:03:06]} 14. e4 {[%emt 0:08:29]} dxe4 {[%emt 0:00:24]} 15. Nxe4 {[%emt 0:00:06]} Be7 {[%emt 0:00:34]} 16. Bxf6 {[%emt 0:00:45]} Nxf6 {[%emt 0:00:24]} 17. Nxf6+ {[%emt 0:01:43]} Bxf6 {[%emt 0:00:15]} 18. Rxe8+ {[%emt 0:04:52]} Qxe8 {[%emt 0:00:05]} 19. Re1 {[%emt 0:02:15]} Qd7 {[%emt 0:00:36]} 20. Qc4 {[%emt 0:04:27]} Rd8 {[%emt 0:01:35]} 21. Re4 {[%emt 0:07:30]} Qd5 {[%emt 0:13:54]} 22. Qxd5 {[%emt 0:00:08]} Rxd5 {[%emt 0:00:05]} 23. Kf1 {[%emt 0:11:01]} a4 {[%emt 0:09:09]} 24. Ke1 {[%emt 0:11:26]} Rb5 {[%emt 0:13:52]} 25. Re8+ {[%emt 0:07:25]} Kh7 {[%emt 0:00:11]} 26. Re2 {[%emt 0:00:24]} c5 {[%emt 0:03:42]} 27. dxc5 {[%emt 0:00:34]} Bxb2 {[%emt 0:00:22]} 28. Re4 {[%emt 0:13:35]} Bc3+ {[%emt 0:20:01]} 29. Kd1 {[%emt 0:08:26]} Bb4 {[%emt 0:03:00]} 30. Ne5 {[%emt 0:03:54]} f5 {[%emt 0:23:37]} 31. Rc4 {[%emt 0:01:11]} Rxc5 {[%emt 0:01:30]} 32. Rxb4 {[%emt 0:00:09]} Rd5+ {[%emt 0:00:13]} 33. Nd3 {[%emt 0:00:14]} Rxd3+ {[%emt 0:00:11]} 34. Kc2 {[%emt 0:00:06]} Ra3 {[%emt 0:01:14]} 35. Kb2 {[%emt 0:01:13]} Rd3 {[%emt 0:00:04]} 36. Kc2 {[%emt 0:00:05]} Ra3 {[%emt 0:00:03]} 37. Kb2 {[%emt 0:00:04]} 1/2-1/2

[Event "11th LCC FIDE Open 2019"]
[Site "London"]
[Date "2019.12.01"]
[Round "4.9"]
[White "Papadiamandis, Elliot"]
[Black "Flear, Glenn C"]
[Result "1/2-1/2"]
[ECO "C55"]
[WhiteElo "2220"]
[BlackElo "2463"]
[Annotator "ChessBase"]
[PlyCount "72"]
[EventDate "2019.11.29"]
[EventType "swiss"]
[EventCountry "ENG"]
[SourceTitle "playchess.com"]
[Source "ChessBase"]
[SourceQuality "1"]
[TimeControl "40/5400+30:1800+30"]

1. e4 {[%emt 0:00:00]} e5 {[%emt 0:00:00]} 2. Nf3 {[%emt 0:00:00]} Nc6 {[%emt 0:00:00]} 3. Bc4 {[%emt 0:00:10]} Nf6 {[%emt 0:00:18]} 4. d3 {[%emt 0:00:16]} Be7 {[%emt 0:00:16]} 5. c3 {[%emt 0:00:17]} O-O {[%emt 0:00:20]} 6. Nbd2 {[%emt 0:00:11]} d5 {[%emt 0:07:31]} 7. Bb3 {[%emt 0:00:25]} Be6 {[%emt 0:06:07]} 8. O-O {[%emt 0:01:49]} dxe4 {[%emt 0:05:53]} 9. dxe4 {[%emt 0:00:48]} Bxb3 {[%emt 0:04:43]} 10. Qxb3 {[%emt 0:01:37]} Qc8 {[%emt 0:00:32]} 11. Re1 {[%emt 0:05:59]} Nd7 {[%emt 0:01:21]} 12. Nc4 {[%emt 0:01:39]} Nc5 {[%emt 0:02:44]} 13. Qc2 {[%emt 0:00:58]} Qe6 {[%emt 0:05:08]} 14. Ne3 {[%emt 0:01:31]} Bd6 {[%emt 0:07:30]} 15. Nf5 {[%emt 0:12:02]} a5 {[%emt 0:07:01]} 16. b3 {[%emt 0:05:52]} Rfd8 {[%emt 0:02:38]} 17. Be3 {[%emt 0:05:30]} Bf8 {[%emt 0:01:37]} 18. Rad1 {[%emt 0:00:51]} f6 {[%emt 0:00:37]} 19. Bc1 {[%emt 0:01:45]} Ne7 {[%emt 0:05:05]} 20. Nxe7+ {[%emt 0:06:27]} Bxe7 {[%emt 0:00:50]} 21. Ba3 {[%emt 0:03:49]} Kf7 {[%emt 0:06:42]} 22. Qe2 {[%emt 0:03:23]} c6 {[%emt 0:00:29]} 23. Nh4 {[%emt 0:06:25]} g6 {[%emt 0:02:52]} 24. Qe3 {[%emt 0:03:55]} Nd7 {[%emt 0:01:44]} 25. Bxe7 {[%emt 0:04:34]} Qxe7 {[%emt 0:00:50]} 26. Rd2 {[%emt 0:06:43]} Nc5 {[%emt 0:01:35]} 27. Red1 {[%emt 0:05:03]} Rxd2 {[%emt 0:00:30]} 28. Rxd2 {[%emt 0:00:27]} Rd8 {[%emt 0:00:32]} 29. Nf3 {[%emt 0:02:51]} b5 {[%emt 0:06:05]} 30. g3 {[%emt 0:03:10]} Rxd2 {[%emt 0:00:21]} 31. Nxd2 {[%emt 0:00:43]} Qd6 {[%emt 0:00:54]} 32. Kg2 {[%emt 0:01:59]} Kg7 {[%emt 0:01:49]} 33. a4 {[%emt 0:02:26]} Kf7 {[%emt 0:10:49]} 34. h4 {[%emt 0:02:34]} Kg7 {[%emt 0:02:13]} 35. Kh2 {[%emt 0:01:05]} Kg8 {[%emt 0:03:05]} 36. Kg2 {[%emt 0:02:04]} Kg7 {[%emt 0:00:54]} 1/2-1/2

[Event "11th LCC FIDE Open 2019"]
[Site "London"]
[Date "2019.12.01"]
[Round "4.11"]
[White "Bukojemski, Adam"]
[Black "Kirk, Ezra"]
[Result "0-1"]
[ECO "E63"]
[WhiteElo "2211"]
[BlackElo "2433"]
[Annotator "ChessBase"]
[PlyCount "90"]
[EventDate "2019.11.29"]
[EventType "swiss"]
[EventCountry "ENG"]
[SourceTitle "playchess.com"]
[Source "ChessBase"]
[SourceQuality "1"]
[TimeControl "40/5400+30:1800+30"]

1. Nf3 {[%emt 0:01:09]} Nf6 {[%emt 0:00:00]} 2. c4 {[%emt 0:00:22]} g6 {[%emt 0:01:53]} 3. d4 {[%emt 0:00:30]} Bg7 {[%emt 0:00:06]} 4. g3 {[%emt 0:00:19]} O-O {[%emt 0:00:07]} 5. Bg2 {[%emt 0:00:04]} d6 {[%emt 0:00:05]} 6. Nc3 {[%emt 0:00:36]} Nc6 {[%emt 0:00:33]} 7. O-O {[%emt 0:00:31]} a6 {[%emt 0:01:07]} 8. b3 {[%emt 0:00:20]} Rb8 {[%emt 0:01:48]} 9. d5 {[%emt 0:00:19]} Na5 {[%emt 0:02:05]} 10. Bg5 {[%emt 0:00:18]} c5 {[%emt 0:05:05]} 11. dxc6 {[%emt 0:00:38]} Nxc6 {[%emt 0:02:35]} 12. Rc1 {[%emt 0:00:21]} h6 {[%emt 0:06:46]} 13. Bf4 {[%emt 0:02:15]} Qa5 {[%emt 0:03:57]} 14. Ne1 {[%emt 0:02:20]} Qh5 {[%emt 0:03:14]} 15. Nd3 {[%emt 0:09:55]} g5 {[%emt 0:06:10]} 16. Bd2 {[%emt 0:01:02]} Ng4 {[%emt 0:09:17]} 17. h3 {[%emt 0:00:09]} Nge5 {[%emt 0:00:26]} 18. Nxe5 {[%emt 0:06:00]} Nxe5 {[%emt 0:07:12]} 19. f4 {[%emt 0:00:46]} gxf4 {[%emt 0:02:16]} 20. Nd5 {[%emt 0:07:54]} fxg3 {[%emt 0:03:15]} 21. Nxe7+ {[%emt 0:05:13]} Kh8 {[%emt 0:00:23]} 22. Nxc8 {[%emt 0:00:16]} Rbxc8 {[%emt 0:01:40]} 23. Rc3 {[%emt 0:02:29]} Ng6 {[%emt 0:03:27]} 24. Rxg3 {[%emt 0:00:32]} Be5 {[%emt 0:11:46]} 25. Bc3 {[%emt 0:07:34]} Bxc3 {[%emt 0:01:07]} 26. Rxc3 {[%emt 0:01:37]} Qe5 {[%emt 0:00:05]} 27. Qd2 {[%emt 0:02:33]} Kh7 {[%emt 0:04:47]} 28. Bxb7 {[%emt 0:03:53]} Rce8 {[%emt 0:01:50]} 29. Rcf3 {[%emt 0:04:18]} f5 {[%emt 0:02:46]} 30. e3 {[%emt 0:12:13]} Qg7 {[%emt 0:03:19]} 31. Bd5 {[%emt 0:04:16]} Nh4+ {[%emt 0:00:43]} 32. Kh2 {[%emt 0:01:43]} Nxf3+ {[%emt 0:00:19]} 33. Rxf3 {[%emt 0:00:11]} Qe5+ {[%emt 0:01:40]} 34. Kh1 {[%emt 0:00:35]} Re7 {[%emt 0:01:27]} 35. b4 {[%emt 0:04:55]} Qa1+ {[%emt 0:01:08]} 36. Kg2 {[%emt 0:03:39]} Rg7+ {[%emt 0:00:46]} 37. Rg3 {[%emt 0:00:18]} Rxg3+ {[%emt 0:00:28]} 38. Kxg3 {[%emt 0:00:02]} Qg1+ {[%emt 0:00:49]} 39. Kf3 {[%emt 0:00:19]} Qf1+ {[%emt 0:01:00]} 40. Kg3 {[%emt 0:01:25]} Rf6 {[%emt 0:02:10]} 41. Qf2 {[%emt 0:35:53]} Rg6+ {[%emt 0:32:06]} 42. Kf3 {[%emt 0:00:05]} Qd1+ {[%emt 0:01:09]} 43. Kf4 {[%emt 0:00:11]} Qh5 {[%emt 0:00:24]} 44. e4 {[%emt 0:02:13]} Qxh3 {[%emt 0:00:45]} 45. exf5 {[%emt 0:00:23]} Rg4# {[%emt 0:00:06]} 0-1

[Event "11th LCC FIDE Open 2019"]
[Site "London"]
[Date "2019.12.01"]
[Round "4.13"]
[White "Makkar, Rajat"]
[Black "Sowray, Peter J"]
[Result "1-0"]
[ECO "E04"]
[WhiteElo "2125"]
[BlackElo "2316"]
[Annotator "NA"]
[PlyCount "59"]
[EventDate "2019.11.29"]
[EventType "swiss"]
[EventCountry "ENG"]
[SourceTitle "playchess.com"]
[Source "ChessBase"]
[SourceQuality "1"]
[TimeControl "40/5400+30:1800+30"]

1. d4 {[%emt 0:00:00]} d5 {[%emt 0:00:00]} 2. c4 {[%emt 0:00:19]} e6 {[%emt 0:00:04]} 3. Nf3 {[%emt 0:00:15]} Nf6 {[%emt 0:00:08]} 4. g3 {[%emt 0:00:05]} dxc4 {[%emt 0:00:08]} 5. Bg2 {[%emt 0:00:08]} a6 {[%emt 0:00:07]} 6. O-O {[%emt 0:00:14]} Nc6 {[%emt 0:00:08]} 7. e3 {[%emt 0:00:19]} Rb8 {[%emt 0:00:09]} 8. Nfd2 {[%emt 0:00:25]} e5 {[%emt 0:02:09]} 9. Bxc6+ {[%emt 0:00:26]} bxc6 {[%emt 0:00:09]} 10. dxe5 {[%emt 0:00:08]} Ng4 {[%emt 0:01:09]} 11. Nxc4 {[%emt 0:00:30]} Be6 {[%emt 0:01:37]} 12. Nbd2 {[%emt 0:00:33]} Bb4 {[%emt 0:03:22]} 13. b3 {[%emt 0:00:11]} h5 {[%emt 0:02:13]} 14. f3 {[%emt 0:11:05]} Bc3 {[%emt 0:11:42]} 15. Rb1 {[%emt 0:00:59]} Nxe5 {[%emt 0:02:04]} 16. Nxe5 {[%emt 0:00:23]} Bxe5 {[%emt 0:00:11]} 17. f4 {[%emt 0:00:17]} Bf6 {[%emt 0:18:51]} 18. f5 {[%emt 0:01:47]} Bc8 {[%emt 0:05:02]} 19. Ba3 {[%emt 0:06:59]} h4 {[%emt 0:07:50]} 20. Qf3 {[%emt 0:11:15]} Qd5 {[%emt 0:02:24]} 21. Ne4 {[%emt 0:01:13]} Bd7 {[%emt 0:08:24]} 22. Rbd1 {[%emt 0:03:06]} Qa5 {[%emt 0:04:04]} 23. Nc5 {[%emt 0:07:56]} O-O {[%emt 0:06:18]} 24. Nxd7 {[%emt 0:01:14]} Qxa3 {[%emt 0:00:07]} 25. Nxf6+ {[%emt 0:00:55]} gxf6 {[%emt 0:00:01]} 26. Qg4+ {[%emt 0:00:25]} Kh7 {[%emt 0:00:08]} 27. Qxh4+ {[%emt 0:00:23]} Kg7 {[%emt 0:00:11]} 28. Rf4 {[%emt 0:00:56]} Rfd8 {[%emt 0:02:00]} 29. Rg4+ {[%emt 0:00:13]} Kf8 {[%emt 0:00:02]} 30. Qh8+ {[%emt 0:00:08]} 1-0